[Event "45th FIDE Olympiad 2024"]
[Site "Budapest"]
[Date "2024.09.11"]
[Round "1.91"]
[White "Monnaatsheko, Keletshabile"]
[Black "Papaioannou, Ioannis"]
[Result "0-1"]
[ECO "A06"]
[WhiteElo "2064"]
[BlackElo "2615"]
[Annotator "TA"]
[PlyCount "62"]
[EventDate "2024.09.05"]
[EventType "team-tourn"]
[EventCountry "HUN"]
[SourceTitle "playchess.com"]
[Source "ChessBase"]
[SourceQuality "1"]
[WhiteTeam "Botswana"]
[BlackTeam "Greece"]
[WhiteTeamCountry "BOT"]
[BlackTeamCountry "GRE"]
[TimeControl "40/5400+30:1800+30"]

{[%evp 9,62,0,18,-4,0,0,0,-12,0,-33,-41,-43,-31,-102,-104,-100,-99,-106,-88,-80,-88,-169,-173,-168,-183,-153,-191,-186,-190,-231,-231,-227,-241,-224,-218,-230,-228,-339,-339,-413,-357,-756,-748,-728,-478,-726,-714,-1047,-643,-2155,-816,-1054,-1047,-29992,-29993]} 1. Nf3 Nf6 2. b3 d5 3. Bb2 Bf5 4. Nh4 Bc8 5. Nf3 Bg4 6. h3 Bxf3 7. exf3 e6 8. f4 {The position is equal.} Bd6 9. Qf3 O-O 10. Nc3 Nc6 11. O-O-O (11. g3 $15) 11... Nd4 $17 12. Qd3 c5 13. g3 a6 {Black is more active.} 14. Bg2 {[%cal Of4f5]} b5 15. Rde1 (15. f5 $17 {is a better defense.}) 15... Rc8 $19 16. Kb1 {[%cal Of4f5]} b4 17. Nd1 Nb5 {...c4 is the strong threat.} 18. Ne3 Nd7 {[%cal Oc5c4]} 19. Qe2 {[#]} c4 $1 {[%mdl 512]} 20. bxc4 {[#]} Na3+ {A dynamic duo of knights.} 21. Ka1 Nxc4 22. Nxc4 dxc4 23. Rb1 (23. d3 {was worth a try.}) 23... Qa5 {Hoping for ...b3.} 24. Qe3 c3 25. dxc3 (25. Bc1) 25... bxc3 {[%cal Oc8c4] aiming for ...Rc4!} 26. Bc1 Rb8 {( -> ...Rxb1+)} 27. Rb3 (27. Bb7 $142 Nc5 28. f5) 27... Nc5 28. Be4 Be7 29. Bd3 Bf6 (29... Rxb3 $142 30. cxb3 Nxb3+ 31. Kb1 Nxc1 (31... Nd2+ $2 32. Bxd2 cxd2 33. Bc4 $19) 32. Kxc1 Qxa2) 30. Kb1 Rfd8 {White must now prevent ...Rxb3+.} 31. Rd1 Nxb3 {White did not feel at home in the position after the opening.   Weighted Error Value: White=1.30/Black=0.63.  Mistake:       	White=4     	---        Inaccurate:     	White=2     	---        OK:         	White=7     	Black=11     Best:        	---       	Black=2      Brilliant:      	---       	Black=1} 0-1

[Event "45th FIDE Olympiad 2024"]
[Site "Budapest"]
[Date "2024.09.11"]
[Round "1.92"]
[White "Kelires, Andreas"]
[Black "Oratile, Kgotlane"]
[Result "1-0"]
[ECO "B07"]
[WhiteElo "2536"]
[BlackElo "1975"]
[Annotator "TA"]
[PlyCount "91"]
[EventDate "2024.09.05"]
[EventType "team-tourn"]
[EventCountry "HUN"]
[SourceTitle "playchess.com"]
[Source "ChessBase"]
[SourceQuality "1"]
[WhiteTeam "Greece"]
[BlackTeam "Botswana"]
[WhiteTeamCountry "GRE"]
[BlackTeamCountry "BOT"]
[TimeControl "40/5400+30:1800+30"]

{[%evp 14,91,19,16,52,63,37,32,51,21,33,34,41,41,66,67,70,56,62,47,78,41,48,40,54,41,38,37,118,119,138,147,124,75,68,73,136,151,256,252,438,452,432,203,199,158,229,210,213,219,217,202,212,185,289,279,331,335,437,504,503,500,496,495,1210,1492,1243,235,302,297,596,570,29995,29989,29996,29989,29989,29990,29990,29990]} 1. Nf3 Nf6 2. d4 g6 3. Nbd2 Bg7 4. e4 d6 5. Bb5+ c6 6. Bd3 O-O 7. O-O c5 8. c3 Nc6 9. d5 Nb8 10. Nc4 b5 {White is slightly better.} 11. Ne3 {[%cal Od1c2]} Bb7 12. Re1 Qb6 13. c4 bxc4 14. Nxc4 Qc7 15. Bd2 Nbd7 16. h3 {White is more active.} Nb6 17. Rc1 Nxc4 18. Bxc4 a5 19. Qe2 Qb6 20. Bc3 Rfb8 {[#]} ({Black should play} 20... Nd7 $14) 21. Rcd1 $1 $16 Ba6 22. e5 Ne8 {[#]} 23. Bxa6 (23. h4 $142 $1) 23... Qxa6 24. Qe4 dxe5 ({Better is} 24... Qc8) 25. Nxe5 {Nc6 is the strong threat.} Nf6 (25... Nd6 $16 {was called for.} 26. Qe3 Qb5) 26. Qf3 $18 {Nc6 would now be deadly.} Re8 $2 (26... Rb6 27. g4 (27. Nc6 Nxd5 28. Rxe7 Rf8 $16) 27... h6) 27. Nc6 Qb7 28. Nxa5 ({Not} 28. Bxa5 Rac8 $16) (28. d6 $142 exd6 29. Re7 (29. Bxf6 Bxf6 30. Rxe8+ Rxe8 $11) (29. Ne7+ Rxe7 30. Rxe7 Qxf3 $18) 29... Rxe7 30. Nxe7+ (30. Bxf6 $2 Re6 $19) 30... Qxe7 31. Qxa8+ Qe8 32. Qxa5) 28... Qd7 29. a3 Nh5 (29... Ra6 $16 30. Nc6 Qb7) 30. Nc6 {[%cal Ba5c6,Bc6e5,Be5c4][%mdl 32] Threatens to win with g4.} Bxc3 31. Qxc3 Qd6 32. Ne5 Rad8 33. g3 $40 {[%mdl 128] White has strong attack.} f5 (33... Nf6 {was necessary.} 34. Qf3 Kg7) 34. Nc4 Qa6 {[#]} 35. d6 $1 {[%mdl 512]} Nf6 (35... exd6 36. Nxd6) 36. dxe7 ({Weaker is} 36. Rxe7 Rxe7 37. Qxf6 Ree8 $18) 36... Rxd1 37. Rxd1 Ne4 {Prevents Nd6} 38. Qd3 Rxe7 (38... Qb7 $142 39. f3 Ng5) 39. Qd8+ Kf7 40. b3 $2 (40. Ne5+ Ke6 41. f4) 40... Qe6 41. Qh8 h5 (41... Qf6 42. Qxh7+ Qg7 43. Qxg7+ Kxg7) 42. f4 {Hoping for Ne5+.} Qa6 43. Rd8 {White mates.} Qb7 44. Ne5+ Ke6 45. Qg8+ Rf7 46. Re8+ {Weighted Error Value: White=0.26 (precise) /Black=0.61.  Mistake:       	White=2     	Black=8      Inaccurate:     	White=2     	Black=3      OK:         	White=9     	Black=12     Best:        	White=3     	Black=2      Strong:       	White=1     	---} 1-0

[Event "45th FIDE Olympiad 2024"]
[Site "Budapest"]
[Date "2024.09.11"]
[Round "1.93"]
[White "Cheparinov, Ivan"]
[Black "Mafaaz, Khalid"]
[Result "1-0"]
[ECO "C65"]
[WhiteElo "2628"]
[BlackElo "2069"]
[Annotator "TA"]
[PlyCount "67"]
[EventDate "2024.09.05"]
[EventType "team-tourn"]
[EventCountry "HUN"]
[SourceTitle "playchess.com"]
[Source "ChessBase"]
[SourceQuality "1"]
[WhiteTeam "Bulgaria"]
[BlackTeam "Pakistan"]
[WhiteTeamCountry "BUL"]
[BlackTeamCountry "PAK"]
[TimeControl "40/5400+30:1800+30"]

{[%evp 12,67,15,10,13,17,10,16,18,27,20,0,0,0,0,0,0,-5,0,-17,-7,-13,-20,-33,-34,-42,-49,-80,-9,-7,0,0,0,-20,-22,-33,0,0,0,0,0,0,0,0,6,9,8,9,26,6,416,423,1712,1859,2124,2027,5900,5381]} 1. e4 e5 2. Nf3 Nc6 3. Bb5 {[%cal Bf1b5,Bb5a4,Ba4c2][%mdl 32]} Nf6 4. d3 Bc5 5. c3 d6 6. O-O O-O 7. Nbd2 a6 8. Ba4 b5 9. Bc2 a5 {The position is equal.} 10. a4 b4 11. Bb3 Rb8 12. Bc4 Be6 13. Bxe6 fxe6 14. Nc4 Qe8 15. Re1 Qh5 16. Be3 Bxe3 17. Nxe3 Qg6 18. g3 Nd7 19. Nc4 bxc3 ({Black should play} 19... Qf6 $17 20. Re3 d5) 20. bxc3 $11 Qf7 21. Ncd2 Nc5 22. Qe2 Rb2 23. Qe3 h6 24. Ra3 Rfb8 25. Kg2 Qf8 26. d4 Nd7 27. Nc4 {[%cal Bd2c4,Bc4b2,Bb2d3][%mdl 32]} d5 28. Nxb2 Qxa3 29. Nd3 {exd5 is the strong threat.} exd4 30. cxd4 {[#] Black must now prevent exd5.} Rb3 $2 {[%mdl 8192] A mistake that costs the game.} (30... Nb4 $11 {and Black has nothing to worry.} 31. Nf4 Qxe3 32. Rxe3 Rb6) 31. exd5 $18 Rxd3 (31... Nf8 $142 32. dxc6 Rxd3) 32. Qxe6+ Kh8 33. dxc6 Nf8 34. Qf7 {Weighted Error Value: White=0.04 (flawless) /Black=0.30.  Loses game:     	---       	Black=1      Mistake:       	---       	Black=2      Inaccurate:     	---       	Black=1      OK:         	White=10    	Black=12     Best:        	White=2     	---} 1-0

[Event "45th FIDE Olympiad 2024"]
[Site "Budapest"]
[Date "2024.09.11"]
[Round "1.94"]
[White "Amer, Karim"]
[Black "Petrov, Martin"]
[Result "1/2-1/2"]
[ECO "E16"]
[WhiteElo "2081"]
[BlackElo "2536"]
[Annotator "TA"]
[PlyCount "110"]
[EventDate "2024.09.05"]
[EventType "team-tourn"]
[EventCountry "HUN"]
[SourceTitle "playchess.com"]
[Source "ChessBase"]
[SourceQuality "1"]
[WhiteTeam "Pakistan"]
[BlackTeam "Bulgaria"]
[WhiteTeamCountry "PAK"]
[BlackTeamCountry "BUL"]
[TimeControl "40/5400+30:1800+30"]

{[%evp 19,110,12,18,22,29,25,24,22,24,18,15,9,17,13,14,14,29,38,24,18,25,16,19,18,20,22,14,16,10,0,0,0,0,0,0,0,0,0,0,0,0,0,0,0,0,0,17,0,0,-7,-4,-4,-4,-13,-14,-35,-35,-35,-26,-27,-13,-34,-33,-36,-22,-89,-89,-89,-8,-11,-11,-11,-1,-8,0,-17,-8,-23,0,0,0,-18,-9,-9,0,-17,0,-9,0,-20,0,-8,0]} 1. d4 Nf6 2. c4 e6 3. Nf3 b6 4. g3 Bb4+ 5. Bd2 Be7 6. Bg2 c6 7. Nc3 d5 8. Bf4 O-O 9. O-O Bb7 10. Ne5 Nbd7 11. e4 Nxe5 12. dxe5 Nxe4 13. Nxe4 {White has an edge.} dxe4 14. Bxe4 Qc7 15. Qf3 Rab8 16. Rfd1 c5 17. Bxb7 Qxb7 18. Qxb7 Rxb7 19. Rd2 Rd8 20. Rxd8+ Bxd8 $11 {[%mdl 4096] Endgame. KRB-KRB} 21. Rd1 Be7 22. Kg2 Kf8 23. Kf3 Ke8 24. Ke4 b5 25. cxb5 Rxb5 26. Rd2 Rb4+ 27. Kf3 g5 {[%cal Bg7g5,Bg5g4][%mdl 32]} 28. Be3 g4+ 29. Kg2 Ra4 30. b3 Re4 31. Bf4 h5 32. h3 Rb4 33. hxg4 hxg4 34. Kf1 c4 35. bxc4 Rxc4 36. Rb2 Bc5 37. Rd2 Bb6 38. Ke2 Rc3 39. Kf1 Kf8 40. Re2 Ra3 41. Bc1 Ra4 42. Be3 (42. Kg2 $11) 42... Bxe3 $17 43. Rxe3 {KR-KR} Kg7 (43... Rxa2 $17 {Threatening ...Ra4.} 44. Re4 Ra5) 44. a3 $11 Kg6 45. Rb3 Re4 46. Rb5 Ra4 47. Rb3 a5 48. Rc3 Rd4 49. Rc5 {The position is equal.} Ra4 50. Rc3 Re4 51. Rc5 Ra4 52. Rc3 Re4 53. Rc5 Ra4 54. Rc3 Rd4 55. Rc5 Ra4 {Weighted Error Value: White=0.06 (flawless) /Black=0.08 (flawless) .  Mistake:       	White=1     	Black=1      OK:         	White=18    	Black=15     Best:        	White=2     	---} 1/2-1/2

[Event "45th FIDE Olympiad 2024"]
[Site "Budapest"]
[Date "2024.09.11"]
[Round "1.95"]
[White "Petkov, Momchil"]
[Black "Momin, Fayzan"]
[Result "1-0"]
[ECO "B70"]
[WhiteElo "2540"]
[BlackElo "2064"]
[Annotator "TA"]
[PlyCount "75"]
[EventDate "2024.09.05"]
[EventType "team-tourn"]
[EventCountry "HUN"]
[SourceTitle "playchess.com"]
[Source "ChessBase"]
[SourceQuality "1"]
[WhiteTeam "Bulgaria"]
[BlackTeam "Pakistan"]
[WhiteTeamCountry "BUL"]
[BlackTeamCountry "PAK"]
[TimeControl "40/5400+30:1800+30"]

{[%evp 21,75,28,35,22,22,24,49,59,61,51,70,68,70,70,76,72,58,55,115,118,113,121,197,191,268,227,210,204,284,237,501,493,495,473,479,494,490,479,551,545,545,536,510,525,997,910,2322,2216,1219,1137,2158,2154,1897,1887,1413,1285]} 1. e4 c5 2. Nf3 d6 3. Nc3 a6 4. g3 Nc6 5. Bg2 g6 6. d4 cxd4 7. Nxd4 Bg7 8. Be3 Bd7 9. O-O Nf6 10. h3 O-O 11. Nde2 Rc8 12. Rc1 b5 13. Nd5 Nxd5 14. exd5 {White is slightly better.} Na5 {[%cal Bc6a5,Ba5b7,Bb7c5][%mdl 32]} 15. b3 Qc7 16. Qd2 Rfe8 17. c3 Nb7 18. Nd4 Nc5 19. c4 Qb8 {Black is now going downhill.} (19... bxc4 $14 20. bxc4 (20. Rxc4 Bb5 $14) 20... h5) 20. cxb5 Bxb5 21. Rfd1 Bxd4 (21... Qb7 $16 22. Nc6 e5) 22. Bxd4 $18 ({Resist} 22. Qxd4 a5 23. Rc3 Qb7 $16) 22... Rc7 (22... f6 $142 23. Qe3 Rc7) 23. Qh6 {[%csl Gd4][%cal Rh6g7] [#]} e5 24. dxe6 fxe6 {Black is weak on the dark squares} 25. Qe3 $40 {[%mdl 128] White goes for the king.} Qc8 $2 (25... e5) 26. Bb2 {This pair of bishops is nice. White is clearly winning.} Nd3 27. Rxc7 ({Not} 27. Rxd3 Rxc1+ 28. Bxc1 Bxd3 $14) 27... Qxc7 28. Rxd3 Bxd3 29. Qxd3 Qb6 30. Qc3 e5 31. Bd5+ Kg7 32. Bc1 Qb8 33. Qe3 {[#] Qh6+ is the strong threat.} Qc7 34. Qh6+ Kh8 35. Bg5 Qg7 {Dodges Bf6} 36. Qh4 Rf8 {Wards off Bf6} 37. Bh6 Qf6 38. Bxf8 {Weighted Error Value: White=0.08 (flawless) /Black=0.44.  Mistake:       	---       	Black=4      Inaccurate:     	---       	Black=3      OK:         	White=12    	Black=5      Best:        	White=1     	Black=2} 1-0

[Event "45th FIDE Olympiad 2024"]
[Site "Budapest"]
[Date "2024.09.11"]
[Round "1.96"]
[White "Mudasir, Iqbal"]
[Black "Grigorov, Grigor"]
[Result "0-1"]
[ECO "B12"]
[WhiteElo "2055"]
[BlackElo "2514"]
[Annotator "TA"]
[PlyCount "58"]
[EventDate "2024.09.05"]
[EventType "team-tourn"]
[EventCountry "HUN"]
[SourceTitle "playchess.com"]
[Source "ChessBase"]
[SourceQuality "1"]
[WhiteTeam "Pakistan"]
[BlackTeam "Bulgaria"]
[WhiteTeamCountry "PAK"]
[BlackTeamCountry "BUL"]
[TimeControl "40/5400+30:1800+30"]

{[%evp 9,58,-21,-22,-18,-4,-78,-62,-90,-94,-60,-54,-48,-66,-155,-49,-65,-60,-75,-62,-54,-45,-69,-72,-128,-124,-369,-374,-612,-597,-646,-595,-783,-783,-1239,-1223,-2538,-1754,-1831,-1715,-29974,-29976,-29975,-29976,-29978,-29978,-29995,-29996,-29996,-29996,-29998,-29998]} 1. e4 c6 2. d4 d5 3. f3 Qb6 4. c3 e5 5. exd5 cxd5 6. Qe2 Nc6 7. dxe5 (7. Nd2 $11 {keeps the balance.}) 7... Bc5 $17 {Black is much more active.} 8. Nh3 {Black is slightly better.} Bxh3 9. gxh3 O-O-O 10. f4 Nh6 11. b4 {[#]} (11. a4 $15) 11... Be7 (11... Nxb4 $1 $17 {[%cal Ob6g6] aiming for ...Qg6!} 12. Na3 (12. cxb4 $2 Bd4 $19) 12... Nc6) 12. Be3 Bh4+ 13. Bf2 Bxf2+ 14. Qxf2 d4 15. b5 Ne7 {[#] ...Nhf5 is the strong threat.} 16. Be2 (16. Bd3 $142) 16... Nhf5 {White must now prevent ...Ne3.} 17. cxd4 $2 {Now White is beyond hope.} (17. O-O $17) 17... Qa5+ $19 ({Less strong is} 17... Qxd4 18. Qxd4 Rxd4 (18... Nxd4 19. Na3 $15) 19. O-O $15) (17... Rxd4 18. O-O $17) (17... Nxd4 18. Kf1 $19) 18. Nd2 $2 (18. Kf1 Rxd4 (18... Nxd4 $2 19. Kg2 $19) 19. Kg2) 18... Rxd4 ({Not} 18... Nxd4 19. Bg4+ Kb8 20. O-O $11) 19. Bg4 Kb8 20. b6 Rhd8 21. bxa7+ Ka8 {( -> ...Re4+)} 22. Rd1 Re4+ (22... Kxa7 $2 {is the wrong capture.} 23. O-O $18) 23. Be2 Nd4 24. O-O Nxe2+ {A dynamic duo of knights. Black mates.} 25. Kh1 Rxd2 26. Rxd2 Qxd2 27. Qc5 Nxf4 {[%csl Gf4][%cal Rd2g2]} 28. Qg1 Qd5 29. Qxg7 Re2+ {Weighted Error Value: White=0.99/Black=0.17 (very precise) .  Loses game:     	White=1     	---        Mistake:       	White=4     	Black=1      Inaccurate:     	White=2     	---        OK:         	White=1     	Black=5      Best:        	White=1     	Black=4} 0-1

[Event "45th FIDE Olympiad 2024"]
[Site "Budapest"]
[Date "2024.09.11"]
[Round "1.97"]
[White "Kao, Jamison Edrich"]
[Black "Kozak, Adam"]
[Result "0-1"]
[ECO "B30"]
[WhiteElo "2125"]
[BlackElo "2609"]
[Annotator "TA"]
[PlyCount "70"]
[EventDate "2024.09.05"]
[EventType "team-tourn"]
[EventCountry "HUN"]
[SourceTitle "playchess.com"]
[Source "ChessBase"]
[SourceQuality "1"]
[WhiteTeam "Hong Kong, China"]
[BlackTeam "Hungary B"]
[TimeControl "40/5400+30:1800+30"]

{[%evp 9,70,21,28,20,26,20,25,10,23,3,3,0,0,-2,-4,-14,0,-49,-58,-101,-89,-82,-86,-80,-13,-19,82,31,52,28,204,200,183,63,57,-38,-35,-30,-39,-42,-48,-44,-31,-215,-193,-408,-408,-897,-861,-910,-888,-905,-922,-1202,-955,-1253,-1233,-1533,-1444,-3942,-3381,-29984,-29985]} 1. e4 c5 2. Nf3 Nc6 3. Bb5 Nf6 4. Bxc6 dxc6 5. d3 Bg4 6. Nbd2 Nd7 7. h3 Bh5 8. b3 {White has an edge.} e5 9. g4 Bg6 10. Bb2 f6 11. Nh4 Bf7 12. Qe2 g6 13. f4 exf4 $15 14. g5 Bg7 15. Nhf3 O-O 16. h4 Be6 ({Black should play} 16... a5 $17 17. a4 b5) 17. Qg2 $11 Ne5 (17... fxg5 $11 {keeps the balance.} 18. Bxg7 Kxg7 19. hxg5 Kg8) 18. O-O-O ({White should try} 18. h5 $16 {Strongly threatening hxg6.} Nxf3+ 19. Nxf3 fxg5 20. Bxg7 Kxg7 21. Nxg5 Qa5+ 22. Kf1) 18... Ng4 $1 $14 19. Rdg1 $1 Qc7 $2 (19... fxg5 $11 20. Bxg7 (20. hxg5 Bxb2+ 21. Kxb2 Ne3 $15) 20... Kxg7) 20. gxf6 $18 Bxf6 {[#]} 21. e5 Nxe5 $14 ({Don't blunder} 21... Ne3 $2 22. Qf2 Bg7 23. h5 $18) 22. Ne4 (22. Bxe5 $14 Bxe5 23. Qe2) 22... Nxf3 $15 23. Nxf6+ {[#]} Rxf6 $1 24. Qxf3 Rf5 25. Qe4 Qf7 {Threatens to win with ...Bd5.} (25... Qd7 {simplifies} 26. Rg5 Qd5 27. Rxf5 Qxe4 28. dxe4 gxf5 29. Rg1+ Kf8) 26. h5 $2 ({Better is} 26. Rg5 $15) 26... g5 $19 27. h6 $2 (27. Qe1) 27... Bd5 28. Qe1 (28. Qxf5 $142 Qxf5 29. Rh5) 28... Bxh1 29. Qc3 {[#]} Kf8 $1 {[%cal Of4f3]} 30. Rxh1 (30. Ba3 Bd5) 30... Re8 31. Rg1 Qg6 {[%cal Of4f3] Hoping for ...f3!} 32. Ba3 b6 {[%cal Of4f3] ...f3! is the strong threat.} 33. d4 Qf6 {[%cal Of4f3] White must now prevent ...f3!} 34. Qh3 f3 {[%cal Of3f2] ( -> ...f2!)} 35. c4 f2 {What a bad dream for White.   Weighted Error Value: White=1.04/Black=0.27 (precise) .  Loses game:     	White=1     	Black=1      Mistake:       	White=6     	Black=2      Inaccurate:     	White=1     	---        OK:         	White=7     	Black=9      Best:        	White=1     	Black=5      Strong:       	White=1     	Black=1      Brilliant:      	---       	Black=1} 0-1

[Event "45th FIDE Olympiad 2024"]
[Site "Budapest"]
[Date "2024.09.11"]
[Round "1.98"]
[White "Prohaszka, Peter"]
[Black "Lam, Daniel King Wai"]
[Result "1-0"]
[ECO "D36"]
[WhiteElo "2542"]
[BlackElo "2088"]
[Annotator "TA"]
[PlyCount "65"]
[EventDate "2024.09.05"]
[EventType "team-tourn"]
[EventCountry "HUN"]
[SourceTitle "playchess.com"]
[Source "ChessBase"]
[SourceQuality "1"]
[WhiteTeam "Hungary B"]
[BlackTeam "Hong Kong, China"]
[TimeControl "40/5400+30:1800+30"]

{[%evp 22,65,28,25,31,26,53,53,58,51,101,102,102,95,132,111,133,123,175,64,131,121,114,120,247,243,368,377,415,400,508,515,683,556,568,550,577,568,498,446,878,764,878,824,750,717]} 1. d4 d5 2. c4 e6 3. Nc3 Nf6 4. cxd5 exd5 5. Bg5 Be7 6. e3 O-O 7. Bd3 c6 8. h3 Nbd7 {[%cal Bb8d7,Bd7f8,Bf8e6][%mdl 32]} 9. Qc2 Re8 10. Nf3 Nf8 11. O-O g6 12. Bh6 Ne6 13. Ne5 Ng7 14. g4 Nd7 {White is slightly better.} 15. f4 Bd6 (15... Nxe5 $14 16. dxe5 (16. fxe5 Bh4 $14) 16... Bf8) 16. Qf2 {White is much more active. The black rooks are passive.} f6 17. Nf3 Nf8 18. a3 ({But not} 18. e4 $6 dxe4 19. Nxe4 Be6 $16) 18... Be6 19. Rae1 Bf7 {[#]} (19... f5 $16) 20. Ne5 Qc7 (20... fxe5 $2 {is the wrong capture.} 21. fxe5 Be6 22. exd6 $18) (20... Be6 $1 $14) 21. Nxf7 $16 Qxf7 22. e4 dxe4 {This costs Black the game.} (22... f5 $16) 23. Nxe4 $18 Red8 {[#]} (23... Be7 $142 24. Nd2 b5) 24. Nxf6+ $1 {[%mdl 512]} Kh8 (24... Qxf6 25. Bc4+) 25. Ne4 Nfe6 26. Bc4 {White is clearly winning.} Qc7 27. Bxg7+ Nxg7 {Black is weak on the light squares} 28. Ng5 {And now Qh4 would win.} Rf8 29. Qh4 {[%csl Gg5][%cal Rh4h7]} h5 30. Ne6 Nxe6 (30... Be7 $142) 31. Rxe6 Bxf4 32. Rxg6 {[%cal Of1f4] Intending Rxf4! and mate.} Qh7 33. Bd3 {Weighted Error Value: White=0.18 (very precise) /Black=0.54.  Mistake:       	White=1     	Black=6      Inaccurate:     	---       	Black=3      OK:         	White=7     	Black=4      Best:        	White=2     	---} ({Weaker is} 33. Qxh5 Qxh5 34. gxh5 Rad8 $14) 1-0